Cogmind - Beta 14 @@@ ROGUE MODE // 2025.04.27 @ 09:03:24 Player: Florist Result: Destroyed by G-73 Enforcer with Heavy Laser Performance ------------- Evolutions (8) 4000 Regions Visited (13) 2600 Robots Destroyed (78) 390 Value Destroyed (2758) 2758 Prototype IDs (37) 740 Alien Tech Used (3) 600 Bonus (2576) 2576 TOTAL SCORE: 13664 Bonus ------- Triggered Max Security 2000 High Alert Combat Kills 216 Follower Combat Kills 60 Aligned with FarCom 300 Cogmind --------- Core Integrity 0/1450 Matter 297/300 Energy 98/100 System Corruption 6% Temperature Cool (27) Movement Core (50) Location -2/Testing Parts ------- > --- POWER (2) -------- (None) > --- PROPULSION (7) --- (None) > --- UTILITY (12) ----- Advanced Signal Interpreter Improved Melee Analysis Suite > --- WEAPON (2) ------- (None) > --- INVENTORY (5) ---- (None) Peak State ------------ > --- POWER ------------ Antimatter Reactor > --- PROPULSION ------- Cooled Field Propulsion Drive Field Propulsion Array Field Propulsion Array Improved Diametric Drive Cooled Q-thruster > --- UTILITY ---------- Experimental Energy Well Advanced Signal Interpreter Improved Targeting Computer Improved Targeting Computer Improved Melee Analysis Suite Improved Melee Analysis Suite Improved Melee Analysis Suite Improved Melee Analysis Suite Advanced Melee Analysis Suite Hacking Suite Hacking Suite Improved System Shield > --- WEAPON ----------- Sigix Broadsword > --- INVENTORY -------- Cesium-ion Thruster Xenon Bombardment Thruster Phase Armor [Rating: 143] Favorites ----------- Power Ion Engine Engine Ion Engine Power Core Light Nuclear Core Reactor Antimatter Reactor Propulsion Light Treads Treads Light Treads Flight Unit Cesium-ion Thruster Utility Improved Melee Analysis Suite Device Advanced Reaction Control System Storage Large Storage Unit Processor Improved Melee Analysis Suite Hackware Hacking Suite Protection Layered Light Armor Plating Artifact Phase Armor Weapon Longsword +1 Energy Gun Small Laser Special Weapon Remote Datajack Slashing Weapon Longsword +1 Piercing Weapon Plasma Lance Build | -11 -10 -10 -10 -9 -8 -7 -6 -5 -4 -3 -3 -2 -2 ------- Run | Yrd Mat Min Exi Min Mat Fac Fac Fac Fac Res Qua Res Tes Slots Evolved 16 | . . . . . 4 2 2 2 2 2 . 2 . Power 1 | . . . . . . . . 1 . . . . . Propulsion 5 | . . . . . 1 1 1 . 1 . . 1 . Utility 10 | . . . . . 3 1 1 1 1 2 . 1 . Weapon . | . . . . . . . . . . . . . . Parts Attached 88 | 5 4 . . 1 14 11 5 6 18 9 4 3 8 Power 8 | . 1 . . . 1 1 . 2 1 1 . . 1 Engine 3 | . 1 . . . 1 . . 1 . . . . . Core 3 | . . . . . . 1 . 1 . . . . 1 Reactor 2 | . . . . . . . . . 1 1 . . . Propulsion 31 | 2 . . . . 3 6 4 . 7 4 . 2 3 Treads 7 | 2 . . . . 3 2 . . . . . . . Leg . | . . . . . . . . . . . . . . Wheel . | . . . . . . . . . . . . . . Hover . | . . . . . . . . . . . . . . Flight 24 | . . . . . . 4 4 . 7 4 . 2 3 Utility 40 | 1 3 . . . 9 3 1 3 8 4 3 1 4 Device 11 | . . . . . 2 . 1 2 2 3 1 . . Storage 6 | 1 2 . . . 1 . . . . . . . 2 Processor 11 | . 1 . . . 3 . . . 3 . 2 1 1 Hackware 5 | . . . . . . 2 . 1 1 1 . . . Protection 6 | . . . . . 3 1 . . 2 . . . . Artifact 1 | . . . . . . . . . . . . . 1 Weapon 9 | 2 . . . 1 1 1 . 1 2 . 1 . . Energy Gun 2 | 2 . . . . . . . . . . . . . Energy Cannon . | . . . . . . . . . . . . . . Ballistic Gun . | . . . . . . . . . . . . . . Ballistic Cannon . | . . . . . . . . . . . . . . Launcher . | . . . . . . . . . . . . . . Special Weapon 3 | . . . . . . 1 . 1 1 . . . . Impact Weapon . | . . . . . . . . . . . . . . Slashing Weapon 3 | . . . . 1 1 . . . . . 1 . . Piercing Weapon 1 | . . . . . . . . . 1 . . . . Special Melee Weapon . | . . . . . . . . . . . . . . Unidentified Prototypes 13 | . . . . . 2 1 . . 2 1 2 1 4 Parts Lost 27 | . . . . . 3 2 . . 4 3 1 1 13 Power 5 | . . . . . 1 1 . . 2 . . . 1 Propulsion 5 | . . . . . 1 . . . . 1 . . 3 Utility 15 | . . . . . 1 1 . . 2 1 1 1 8 Weapon 2 | . . . . . . . . . . 1 . . 1 Highest Loss Streak 13 | . . . . . 2 1 . . 2 1 1 1 13 To Critical Strikes . | . . . . . . . . . . . . . . Average Slot Usage (%) 88 | . 85 100 100 91 81 89 97 99 90 81 79 77 61 Engine 6 | . 2 14 14 14 9 4 . 4 5 1 . . . Treads 16 | . 28 28 28 28 25 23 . . . . . . . Flight 10 | . . . . . . 6 33 29 25 21 19 21 14 Device 2 | . . . . . . . 4 5 5 10 9 3 . Storage 6 | . 14 14 14 14 8 5 . . . . . . . Processor 19 | . 11 14 14 14 22 23 20 17 19 23 26 29 29 Hackware 5 | . . . . . . . 13 16 14 9 14 13 11 Protection 4 | . . . . . 5 13 6 5 4 2 . . . Energy Gun 7 | . 28 28 28 9 . . . . . . . . . Special Weapon 1 | . . . . . . 1 6 5 4 1 . . . Slashing Weapon 4 | . . . . 10 9 7 6 5 5 4 4 4 2 Peak Build Rating 143 | 5 8 8 9 16 48 49 57 65 91 102 126 125 143 Average Rating 43 | 4 6 8 8 13 26 35 55 63 86 92 111 122 98 On Entrance 48 | . 5 8 8 9 16 31 49 57 64 84 102 118 125 Naked Turns . | . . . . . . . . . . . . . . Heaviest Build 40 | 7 27 27 27 29 40 35 16 26 35 36 30 27 26 Greatest Support 80 | 40 40 40 40 40 60 80 26 26 36 42 42 49 51 Greatest Overweight (x) 1 | . . . . . . 1 . . . . . . 1 Average Overweight (x) . | . . . . . . . . . . . . . . Largest Inventory Capacity 15 | 8 15 15 15 15 15 15 5 5 5 5 5 5 5 Average Capacity 10 | 7 10 15 15 15 14 12 5 5 5 5 5 5 5 Most Carried 15 | 6 10 10 11 14 15 15 5 5 5 5 5 4 5 Average Carried 8 | 3 8 10 10 11 13 10 4 3 4 4 4 3 3 Final Capacity 15 | 8 15 15 15 15 15 5 5 5 5 5 5 5 5 Final Carried 15 | 4 10 10 11 13 15 4 5 4 4 3 4 4 . Class Distribution -------------------- 59% | Mutant 35% | Hacker-Sprinter Dominant Class ---------------- Mutant | -10/Materials Mutant | -10/Mines Mutant | -10/Exiles Mutant | -9/Mines Mutant | -8/Materials Mutant | -7/Factory Hacker-Sprinter | -6/Factory Hacker-Sprinter | -5/Factory Hacker-Sprinter | -4/Factory Hacker-Sprinter | -3/Research Hacker-Sprinter | -3/Quarantine Hacker-Sprinter | -2/Research Hacker-Sprinter | -2/Testing Resources | -11 -10 -10 -10 -9 -8 -7 -6 -5 -4 -3 -3 -2 -2 ----------- Run | Yrd Mat Min Exi Min Mat Fac Fac Fac Fac Res Qua Res Tes Matter Collected 1149 | 161 124 19 . 10 140 110 50 40 180 185 20 55 55 Remotely . | . . . . . . . . . . . . . . Salvage Created 3132 | . 257 129 . 136 694 256 81 97 705 487 118 108 64 Parts 219 | . 25 6 . 2 50 18 7 5 50 37 7 8 4 Haulers Intercepted 2 | . 1 . . . 1 . . . . . . . . Recyclers Shooed . | . . . . . . . . . . . . . . Parts Field Recycled . | . . . . . . . . . . . . . . Retrieved Matter . | . . . . . . . . . . . . . . Parts Self-Destructed . | . . . . . . . . . . . . . . Prevented . | . . . . . . . . . . . . . . Kills | -11 -10 -10 -10 -9 -8 -7 -6 -5 -4 -3 -3 -2 -2 ------- Run | Yrd Mat Min Exi Min Mat Fac Fac Fac Fac Res Qua Res Tes Combat Hostiles Destroyed 46 | . 6 3 . 3 13 5 . 1 4 8 1 1 1 Melee 37 | . . . . 3 13 5 . 1 4 8 1 1 1 Guns 9 | . 6 3 . . . . . . . . . . . Classes Destroyed 14 | . 5 . . . 5 2 1 . 1 . . . . Worker 3 | . . . . . . . 1 . 1 1 . . . Builder 1 | . . . . . 1 . . . . . . . . Tunneler 2 | . . . . . 1 . . . . . . 1 . Hauler 2 | . 1 . . . 1 . . . . . . . . Recycler 2 | . . . . . 1 . . . 1 . . . . Mechanic 1 | . . . . . . . . . 1 . . . . Operator 4 | . 1 . . . . 1 1 . . 1 . . . Watcher 17 | . 1 . . . 1 2 1 2 8 1 1 . . Swarmer 19 | . 3 . . . 6 3 . 1 1 5 . . . Grunt 12 | . 3 3 . 3 2 . . . . 1 . . . Sentry 6 | . . . . . 4 . . . . . 1 1 . Hunter 1 | . . . . . . 1 . . . . . . . Programmer 7 | . . . . . . 1 . . 3 2 . . 1 Heavy 1 | . . . . . 1 . . . . . . . . Best Kill Streak 4 | . 3 3 . 2 4 3 2 2 4 3 1 1 1 Combat Bots Only 4 | . 3 3 . 2 4 3 . 1 3 2 1 1 1 Max Kills in Single Turn 1 | . 1 1 . 1 1 1 1 1 1 1 1 1 1 Gunslinging . | . . . . . . . . . . . . . . Exploded . | . . . . . . . . . . . . . . Melee 1 | . . . . 1 1 1 . 1 1 1 1 1 1 Uniques/NPCs Destroyed . | . . . . . . . . . . . . . . Combat | -11 -10 -10 -10 -9 -8 -7 -6 -5 -4 -3 -3 -2 -2 -------- Run | Yrd Mat Min Exi Min Mat Fac Fac Fac Fac Res Qua Res Tes Hostile Shots Fired 406 | . 27 6 . 5 51 24 . 4 69 47 18 4 151 Missed 178 | . 8 1 . 2 12 6 . 2 46 28 12 2 59 Damage Taken 5539 | . 214 69 . 34 873 273 . 28 602 678 137 76 2555 Core 1941 | . 81 16 . 12 146 59 . . 118 51 . 27 1431 Absorbed by Shields . | . . . . . . . . . . . . . . Regen/Repaired (Parts) 481 | . . . . . 11 . . . 219 . 30 77 144 Core Remaining (%) 88 | 100 . . . 56 73 91 100 100 89 . 96 . . Volleys Fired 43 | . 31 8 . 1 . 1 . . 1 1 . . . Largest 2 | . 2 2 . 1 . 1 . . 1 1 . . . Hottest 80 | . 80 80 . 40 . 5 . . 5 5 . . . Shots Fired 82 | . 62 16 . 1 . 1 . . 1 1 . . . Gun 79 | . 62 16 . 1 . . . . . . . . . Cannon . | . . . . . . . . . . . . . . Launcher . | . . . . . . . . . . . . . . Special 3 | . . . . . . 1 . . 1 1 . . . Kinetic . | . . . . . . . . . . . . . . Thermal 79 | . 62 16 . 1 . . . . . . . . . Explosive . | . . . . . . . . . . . . . . Electromagnetic . | . . . . . . . . . . . . . . Robot Hit Streak 8 | . 8 3 . 2 . 3 . . 4 . . . . Robot Miss Streak 5 | . 3 5 . . . . . . . . . . . Penetration Max . | . . . . . . . . . . . . . . Secondary Targets . | . . . . . . . . . . . . . . Shots Hit Robots 200 | . 40 8 . 7 47 15 6 5 37 22 3 2 8 Core Hits 80 | . 16 5 . 2 18 7 1 2 12 13 2 2 . Critical Kills . | . . . . . . . . . . . . . . Critical Parts Destroyed . | . . . . . . . . . . . . . . Critical Strikes 14 | . . . . 1 5 1 . . 2 3 . . 2 Sever 14 | . . . . 1 5 1 . . 2 3 . . 2 Melee Attacks 262 | . . . . 6 59 22 12 18 80 34 10 8 13 Impact . | . . . . . . . . . . . . . . Slashing 262 | . . . . 6 59 22 12 18 80 34 10 8 13 Piercing . | . . . . . . . . . . . . . . Sneak Attacks 14 | . . . . . 5 1 1 . 4 1 . 1 1 Combat Hostiles . | . . . . . . . . . . . . . . Follow-up Attacks . | . . . . . . . . . . . . . . Damage Inflicted 9266 | . 445 86 . 283 2131 739 448 283 2324 1289 231 290 717 Guns 543 | . 445 86 . 12 . . . . . . . . . Cannons . | . . . . . . . . . . . . . . Explosions . | . . . . . . . . . . . . . . Melee 8723 | . . . . 271 2131 739 448 283 2324 1289 231 290 717 Ramming . | . . . . . . . . . . . . . . Kinetic . | . . . . . . . . . . . . . . Thermal 543 | . 445 86 . 12 . . . . . . . . . Explosive . | . . . . . . . . . . . . . . Electromagnetic . | . . . . . . . . . . . . . . Impact . | . . . . . . . . . . . . . . Slashing 8723 | . . . . 271 2131 739 448 283 2324 1289 231 290 717 Piercing . | . . . . . . . . . . . . . . Highest Corruption 6 | . 1 1 1 1 . . . . 4 2 3 . 6 Average Corruption 1 | . 1 1 1 1 . . . . 3 2 2 . 3 Corruption Purged . | . . . . . . . . . . . . . . Corruption Blocked . | . . . . . . . . . . . . . . Effects 33 | . 2 4 6 . . . . . 10 3 3 . 5 Message Errors 11 | . 1 1 3 . . . . . 3 1 2 . . Matter Fused 8 | . 1 1 . . . . . . 3 2 . . 1 Heat Flow Errors 2 | . . . . . . . . . 1 . . . 1 Energy Discharges 5 | . . 2 1 . . . . . . . 1 . 1 Parts Rejected 1 | . . . . . . . . . . . . . 1 Parts Fused 1 | . . . . . . . . . 1 . . . . Data Loss (minor) 2 | . . . . . . . . . 1 . . . 1 Data Loss (major) 2 | . . . 2 . . . . . . . . . . Alerts 1 | . . . . . . . . . 1 . . . . Overload Shots . | . . . . . . . . . . . . . . Overflow Damage 1214 | . . . . 32 203 107 173 91 439 13 10 . 146 Projectiles . | . . . . . . . . . . . . . . Explosions . | . . . . . . . . . . . . . . Melee 1214 | . . . . 32 203 107 173 91 439 13 10 . 146 Knockbacks . | . . . . . . . . . . . . . . Impact . | . . . . . . . . . . . . . . Kinetic . | . . . . . . . . . . . . . . Secondary . | . . . . . . . . . . . . . . Self-Inflicted Damage . | . . . . . . . . . . . . . . Shots . | . . . . . . . . . . . . . . Rammed . | . . . . . . . . . . . . . . Targets Rammed . | . . . . . . . . . . . . . . Kicked . | . . . . . . . . . . . . . . Crushed . | . . . . . . . . . . . . . . Highest Temperature 309 | . 138 111 . . 9 . 148 249 309 12 . . 86 Average Temperature 50 | . 40 45 . . 9 . 45 89 36 6 . . 51 Received Heat Transfer 678 | . 96 39 . 18 162 . . . 24 48 30 9 252 Effects 4 | . . . . . . . . . 4 . . . . Energy Bleed 1 | . . . . . . . . . 1 . . . . Interference 2 | . . . . . . . . . 2 . . . . Matter Decay 1 | . . . . . . . . . 1 . . . . Siege Activations . | . . . . . . . . . . . . . . Robots Corrupted . | . . . . . . . . . . . . . . Combat Hostiles . | . . . . . . . . . . . . . . Parts Fried . | . . . . . . . . . . . . . . Impact Corruptions . | . . . . . . . . . . . . . . Robots Melted . | . . . . . . . . . . . . . . Combat Hostiles . | . . . . . . . . . . . . . . Parts Melted 1 | . . 1 . . . . . . . . . . . Heat Transferred 1225 | . 1000 200 . 25 . . . . . . . . . Parts Sabotaged 5 | . . . . . . . . . . . . . 5 Parts Stolen . | . . . . . . . . . . . . . . Parts Stripped . | . . . . . . . . . . . . . . Power Chain Reactions . | . . . . . . . . . . . . . . Alert | -11 -10 -10 -10 -9 -8 -7 -6 -5 -4 -3 -3 -2 -2 ------- Run | Yrd Mat Min Exi Min Mat Fac Fac Fac Fac Res Qua Res Tes Peak Influence 1813 | . 149 114 . 50 251 115 104 202 425 499 1747 1248 1813 Initial 1100 | . . . . . 7 28 17 50 12 149 258 1100 702 Average 203 | . 37 70 . 33 93 38 77 65 208 293 1649 1150 1672 Maximum Alert Level 5 | . . . . . 1 . . 1 2 2 5 4 5 Low Security (%) 77 | 100 100 100 . 100 94 100 100 98 47 11 . . . Level 1 12 | . . . . . 5 . . 1 44 76 . . . Level 2 1 | . . . . . . . . . 7 11 . . . Level 3 . | . . . . . . . . . . . . . . Level 4 2 | . . . . . . . . . . . . 100 . Level 5 . | . . . . . . . . . . . . . . High Security . | . . . . . . . . . . . . . . Max Security 4 | . . . . . . . . . . . 99 . 99 Squads Dispatched 35 | . 4 . . 1 1 2 1 1 5 1 6 1 12 Investigation 5 | . 3 . . 1 . . . . 1 . . . . Extermination 7 | . . . . . . 2 1 . 3 1 . . . Reinforcement 5 | . 1 . . . 1 . . 1 1 . . 1 . Assault 18 | . . . . . . . . . . . 6 . 12 Garrison . | . . . . . . . . . . . . . . Intercept . | . . . . . . . . . . . . . . Searches Triggered 1 | . . . . . . . . . 1 . . . . Construction Impeded . | . . . . . . . . . . . . . . Haulers Reinforced . | . . . . . . . . . . . . . . Active Scanning Responses . | . . . . . . . . . . . . . . Cargo Convoy Interrupts . | . . . . . . . . . . . . . . Stealth | -11 -10 -10 -10 -9 -8 -7 -6 -5 -4 -3 -3 -2 -2 --------- Run | Yrd Mat Min Exi Min Mat Fac Fac Fac Fac Res Qua Res Tes Distress Signals 14 | . 2 . . . 2 . . . 2 4 . 1 3 Communications Jammed . | . . . . . . . . . . . . . . Distress Signals . | . . . . . . . . . . . . . . Times Spotted 254 | . 13 5 . 4 32 12 3 6 42 25 37 4 71 Peak Tracking Total 48 | . 5 3 . 2 6 3 1 6 9 9 35 2 48 Tactical Retreats 29 | . 1 . . . 6 1 . 1 8 6 . 3 3 Traps | -11 -10 -10 -10 -9 -8 -7 -6 -5 -4 -3 -3 -2 -2 ------- Run | Yrd Mat Min Exi Min Mat Fac Fac Fac Fac Res Qua Res Tes Traps Triggered 9 | . 2 . . . . 1 . . 2 1 1 . 2 Indirectly . | . . . . . . . . . . . . . . Trap Hack Attempts . | . . . . . . . . . . . . . . Triggered . | . . . . . . . . . . . . . . Disarmed . | . . . . . . . . . . . . . . Reprogrammed . | . . . . . . . . . . . . . . Reused 2 | . . . . . . 2 . . . . . . . Traps Extracted . | . . . . . . . . . . . . . . Installed 4 | . . . . . . 4 . . . . . . . Triggered 2 | . . . . . . 2 . . . . . . . Most Traps Carried 5 | . . . . 5 5 5 . . . . . . . Machines | -11 -10 -10 -10 -9 -8 -7 -6 -5 -4 -3 -3 -2 -2 ---------- Run | Yrd Mat Min Exi Min Mat Fac Fac Fac Fac Res Qua Res Tes Machines Disabled 9 | . . 2 . . . . . . . . 4 . 3 Max in Single Turn 1 | . . . . . . . . . . . 1 . 1 Garrison Access 4 | . . . . . 1 . . 1 1 1 . . . Machines Repaired . | . . . . . . . . . . . . . . Machines Dismantled . | . . . . . . . . . . . . . . Machines Sabotaged . | . . . . . . . . . . . . . . Overloaded Fab Kills . | . . . . . . . . . . . . . . Hacking | -11 -10 -10 -10 -9 -8 -7 -6 -5 -4 -3 -3 -2 -2 --------- Run | Yrd Mat Min Exi Min Mat Fac Fac Fac Fac Res Qua Res Tes Machines Accessed 47 | . 2 . 1 1 9 4 4 6 15 5 . . . Terminals 33 | . 2 . . . 7 4 2 5 10 3 . . . Fabricators 1 | . . . . . . . . . 1 . . . . Repair Stations 3 | . . . . . 1 . . . 2 . . . . Recycling Units 3 | . . . . . . . 1 . 1 1 . . . Scanalyzers . | . . . . . . . . . . . . . . Garrison Access 5 | . . . . . 1 . 1 1 1 1 . . . Total Hacks 115 | . 8 . 1 1 24 9 6 19 40 7 . . . Successful 70 | . 2 . 1 1 15 4 1 11 32 3 . . . Failed 45 | . 6 . . . 9 5 5 8 8 4 . . . Catastrophic 6 | . 3 . . . . 2 1 . . . . . . Database Lockouts . | . . . . . . . . . . . . . . Manual 68 | . 5 . 1 . 14 6 2 11 23 6 . . . Terminals 90 | . 8 . . . 20 9 2 17 29 5 . . . Fabricators 1 | . . . . . . . . . 1 . . . . Repair Stations 8 | . . . . . 2 . . . 6 . . . . Recycling Units 5 | . . . . . . . 2 . 2 1 . . . Scanalyzers . | . . . . . . . . . . . . . . Garrison Access 9 | . . . . . 2 . 2 2 2 1 . . . Terminal Hacks 28 | . . . 1 1 4 3 . 5 13 1 . . . Record 4 | . . . . . . . . 1 3 . . . . Prototype ID Bank 2 | . . . . . 1 . . . 1 . . . . Open Door 2 | . . . . 1 . . . . . 1 . . . Open DSF 1 | . . . . . . 1 . . . . . . . Level Access Points 1 | . . . . . . . . . 1 . . . . Branch Access Points 1 | . . . . . . . . . 1 . . . . Terminal Index 4 | . . . . . 1 1 . 1 1 . . . . Alert Level 4 | . . . . . 1 . . 1 2 . . . . Unreport Threat 1 | . . . . . . . . 1 . . . . . Locate Traps 1 | . . . . . . 1 . . . . . . . Surveillance Status 1 | . . . . . . . . . 1 . . . . Investigation Status 1 | . . . . . . . . . 1 . . . . Recall Investigation 1 | . . . . . . . . 1 . . . . . Registered Prototypes 1 | . . . . . 1 . . . . . . . . Zone Layout 2 | . . . . . . . . . 2 . . . . Derelict Proto ID Bank 1 | . . . 1 . . . . . . . . . . Fabricator Hacks 1 | . . . . . . . . . 1 . . . . Network Status 1 | . . . . . . . . . 1 . . . . Repair Station Hacks 8 | . . . . . 2 . . . 6 . . . . Scan Component 4 | . . . . . 1 . . . 3 . . . . Repair 4 | . . . . . 1 . . . 3 . . . . Recycling Unit Hacks 1 | . . . . . . . . . 1 . . . . Report Inventory 1 | . . . . . . . . . 1 . . . . Scanalyzer . | . . . . . . . . . . . . . . Garrison Access Hacks 4 | . . . . . 1 . . 1 1 1 . . . Seal Access 4 | . . . . . 1 . . 1 1 1 . . . Unauthorized Hacks 28 | . 2 . . . 8 1 1 5 10 1 . . . Terminals 27 | . 2 . . . 8 1 1 5 9 1 . . . Assimilate 2 | . . . . . 2 . . . . . . . . Botnet 25 | . 2 . . . 6 1 1 5 9 1 . . . Fabricators . | . . . . . . . . . . . . . . Repair Stations . | . . . . . . . . . . . . . . Recycling Units 1 | . . . . . . . . . 1 . . . . Mask 1 | . . . . . . . . . 1 . . . . Scanalyzers . | . . . . . . . . . . . . . . Garrison Access . | . . . . . . . . . . . . . . Data Cores Recovered 3 | . . . . . . 1 1 . . 1 . . . Used . | . . . . . . . . . . . . . . Hacking Detections 37 | . 2 . . . 5 2 4 6 15 3 . . . Full Trace Events 1 | . 1 . . . . . . . . . . . . Feedback Events 1 | . 1 . . . . . . . . . . . . Corruption 1 | . 1 . . . . . . . . . . . . Feedback Blocked . | . . . . . . . . . . . . . . Robot Schematics Acquired . | . . . . . . . . . . . . . . Robots Built . | . . . . . . . . . . . . . . Authchips . | . . . . . . . . . . . . . . Time . | . . . . . . . . . . . . . . Total Robot Build Rating . | . . . . . . . . . . . . . . Part Schematics Acquired . | . . . . . . . . . . . . . . Parts Built . | . . . . . . . . . . . . . . Authchips . | . . . . . . . . . . . . . . Time . | . . . . . . . . . . . . . . Total Part Build Rating . | . . . . . . . . . . . . . . Parts Repaired 4 | . . . . . 1 . . . 3 . . . . Time 160 | . . . . . 108 . . . 52 . . . . Parts Recycled . | . . . . . . . . . . . . . . Recycled Matter . | . . . . . . . . . . . . . . Retrieved Matter . | . . . . . . . . . . . . . . Retrieved Components . | . . . . . . . . . . . . . . Parts Scanalyzed . | . . . . . . . . . . . . . . Part Schematics Acquired . | . . . . . . . . . . . . . . Parts Damaged . | . . . . . . . . . . . . . . Bothacking | -11 -10 -10 -10 -9 -8 -7 -6 -5 -4 -3 -3 -2 -2 ------------ Run | Yrd Mat Min Exi Min Mat Fac Fac Fac Fac Res Qua Res Tes Used RIF Installer . | . . . . . . . . . . . . . . Robots Hacked . | . . . . . . . . . . . . . . Non-combat . | . . . . . . . . . . . . . . Combat . | . . . . . . . . . . . . . . Robot Hacks Applied . | . . . . . . . . . . . . . . Relay Couplers Released . | . . . . . . . . . . . . . . Fabnet Peak Effective % . | . . . . . . . . . . . . . . Robots Rewired . | . . . . . . . . . . . . . . Allies Hacked . | . . . . . . . . . . . . . . Hacks Repelled . | . . . . . . . . . . . . . . Allies | -11 -10 -10 -10 -9 -8 -7 -6 -5 -4 -3 -3 -2 -2 -------- Run | Yrd Mat Min Exi Min Mat Fac Fac Fac Fac Res Qua Res Tes Total Allies 4 | . . 3 . . 1 . . . . . . . . Largest Group 3 | . . 3 1 1 1 . . . . . . . . Highest-Rated Group 40 | . . 40 8 8 10 . . . . . . . . Highest-Rated Ally 16 | . . 16 8 8 10 . . . . . . . . Total Orders 4 | . . . . . . . . . . 4 . . . EXPLORE 2 | . . . . . . . . . . 2 . . . RETURN 2 | . . . . . . . . . . 2 . . . Ally Attacks 21 | . . 16 . 5 . . . . . . . . . Total Damage 170 | . . 137 . 33 . . . . . . . . . Kills 2 | . . 2 . . . . . . . . . . . Allies Corrupted . | . . . . . . . . . . . . . . Allies Melted 1 | . . 1 . . . . . . . . . . . Intel | -11 -10 -10 -10 -9 -8 -7 -6 -5 -4 -3 -3 -2 -2 ------- Run | Yrd Mat Min Exi Min Mat Fac Fac Fac Fac Res Qua Res Tes Robot Analysis Total . | . . . . . . . . . . . . . . Derelict Logs Recovered 2 | . . . . 2 . . . . . . . . . Drone Launches 3 | . . . . . . . . . . 3 . . . Drone Recoveries 3 | . . . . . . . . . . 3 . . . Exploration | -11 -10 -10 -10 -9 -8 -7 -6 -5 -4 -3 -3 -2 -2 ------------- Run | Yrd Mat Min Exi Min Mat Fac Fac Fac Fac Res Qua Res Tes Turns Passed 9059 | 193 839 493 797 420 1700 1342 251 608 1338 455 136 239 248 Spaces Moved 8720 | 49 436 258 497 239 712 960 604 621 2352 916 324 330 422 Core 118 | 8 . . . . . . . . . . . . 110 Treads 2754 | 41 436 258 497 239 712 571 . . . . . . . Legs . | . . . . . . . . . . . . . . Wheels . | . . . . . . . . . . . . . . Hover . | . . . . . . . . . . . . . . Flight 5848 | . . . . . . 389 604 621 2352 916 324 330 312 Fastest Speed 20 | 50 160 160 160 160 160 26 23 23 20 25 29 25 24 Average Speed 68 | 142 160 160 160 160 160 106 23 23 24 26 29 26 32 Slowest Speed 160 | 160 160 160 160 160 160 160 26 23 32 29 29 27 115 Overloaded Moves . | . . . . . . . . . . . . . . Propulsion Burnouts . | . . . . . . . . . . . . . . Robots Hopped 21 | . . . . . . . 2 5 4 6 . . 4 Cave-ins Triggered 1 | . . . . . . . . . . 1 . . . Exploration Rate (%) 35 | 5 54 55 78 41 48 19 14 18 55 22 49 7 29 Regions Visited 13 Branch Regions 5 Pre-discovered Areas 1 | . . . . 1 . . . . . . . . . Known Exits Taken 12 | . 1 1 1 1 1 1 1 1 1 1 1 1 . Unknown Exits Taken 1 | 1 . . . . . . . . . . . . . Scrap Searched 2 | . . 1 . 1 . . . . . . . . . Spaces Dug 86 | . . . . . 9 6 4 11 37 12 . 6 1 Terrain Destroyed 86 | . . . . . 9 6 4 11 37 12 . 6 1 Melee 86 | . . . . . 9 6 4 11 37 12 . 6 1 Projectile . | . . . . . . . . . . . . . . AOE . | . . . . . . . . . . . . . . Terrain Rammed . | . . . . . . . . . . . . . . Walls Destroyed . | . . . . . . . . . . . . . . Machines Disabled . | . . . . . . . . . . . . . . Actions | -11 -10 -10 -10 -9 -8 -7 -6 -5 -4 -3 -3 -2 -2 --------- Run | Yrd Mat Min Exi Min Mat Fac Fac Fac Fac Res Qua Res Tes Total 11474 | 173 516 322 499 273 1224 1261 702 1062 3023 1095 355 463 506 Wait 2132 | 111 32 57 . 10 388 222 73 416 543 105 . 121 54 Move 8669 | 48 435 257 496 238 711 959 599 611 2344 904 323 329 415 Hop 17 | . . . . . . . 2 4 3 5 . . 3 Pick Up 138 | 9 11 . 2 9 30 13 7 4 22 13 9 2 7 Fast Attach . | . . . . . . . . . . . . . . Attach 72 | 5 2 . . . 12 10 4 3 14 8 5 2 7 Detach 1 | . . . . . 1 . . . . . . . . Swap 18 | . 2 . . 1 2 1 1 3 4 1 1 1 1 Drop 87 | . 3 . 1 8 21 11 4 3 12 11 7 . 6 Fire 43 | . 31 8 . 1 . 1 . . 1 1 . . . Melee 262 | . . . . 6 59 22 12 18 80 34 10 8 13 Ram . | . . . . . . . . . . . . . . Kick . | . . . . . . . . . . . . . . Crush . | . . . . . . . . . . . . . . Escape Stasis 31 | . . . . . . 18 . . . 13 . . . Rewire . | . . . . . . . . . . . . . . Trap 4 | . . . . . . 4 . . . . . . . Miscellaneous . | . . . . . . . . . . . . . . Route ------- -11/Scrapyard -10/Materials (discovered 2 exits: *Mat / *Min) -10/Mines (discovered 2 exits: *Mat / *Exi) -10/Exiles (discovered 2 exits: *Min x2) -9/Mines -8/Materials (discovered 2 exits: *Fac x2) -7/Factory -6/Factory (discovered 2 exits: *Fac / *Low) -5/Factory (discovered 2 exits: *Fac / *Upp) -4/Factory (discovered 7 exits: *Res x4 / *Upp x2 / Arm) -3/Research -3/Quarantine -2/Research (discovered 2 exits: *Acc / *Tes) -2/Testing History --------- Turn | Location | Event 4 | -11/Scrapyard | Discovered new exit (range 15) 194 | -11/Scrapyard | Entered Materials 304 | -10/Materials | Build established: Mutant 908 | -10/Materials | Discovered new exit (range 16) 931 | -10/Materials | Discovered new exit (range 15) 959 | -10/Materials | Identified exit to Materials 1031 | -10/Materials | Identified exit to Mines 1033 | -10/Materials | Entered Mines 1109 | -10/Mines | Assisted by bots powering up and referring to "LRC-V3" 1492 | -10/Mines | Discovered exit to Materials (range 5) 1508 | -10/Mines | Discovered new exit (range 9) 1521 | -10/Mines | Identified exit to Exiles 1526 | -10/Mines | Entered Exiles 1526 | -10/Exiles | Accompanied by 1 ally 1550 | -10/Exiles | Discovered new exit (range 15) 1573 | -10/Exiles | Met 8R-AWN 1595 | -10/Exiles | Met EX-HEX 1688 | -10/Exiles | Met EX-DEC 1739 | -10/Exiles | Visited The Gauntlet 1864 | -10/Exiles | Met EX-BIN 1894 | -10/Exiles | Aligned with FarCom system 1896 | -10/Exiles | Given EX-Vault access code 1957 | -10/Exiles | Opened EX-Vault 1963 | -10/Exiles | Found Prototype Energy Cannon 1979 | -10/Exiles | Found Longsword +1 2014 | -10/Exiles | Warned to stay clear of 0b10 Research branches 2119 | -10/Exiles | Discovered new exit (range 12) 2134 | -10/Exiles | Identified exit to Mines 2323 | -10/Exiles | Left Exiles lab with Longsword +1 2323 | -10/Exiles | Entered Mines 2323 | -9/Mines | Accompanied by 1 ally 2349 | -9/Mines | Learned Materials security intel 2360 | -9/Mines | Learned location of Zion (-7) 2370 | -9/Mines | Found a damaged Exp. Sensor Array with a note attached 2373 | -9/Mines | Found Prototype Device 2490 | -9/Mines | Found a hidden stash of uninstalled traps 2549 | -9/Mines | A weapon hastily lodged in a ceiling crevice suddenly fell to the ground 2660 | -9/Mines | Met a Derelict shopkeep closing up shop 2735 | -9/Mines | Discovered new exit (range 6) 2741 | -9/Mines | Identified exit to Materials 2743 | -9/Mines | Entered Materials 2743 | -8/Materials | Evolved 4 slots: Propulsion x1, Utility x3 2743 | -8/Materials | Identified Exp. Sensor Array 3659 | -8/Materials | Discovered new exit (range 13) 3699 | -8/Materials | Identified exit to Factory 3823 | -8/Materials | Repaired Exp. Sensor Array 4185 | -8/Materials | Discovered exit to Factory (range 8) 4221 | -8/Materials | Found Prototype Device 4236 | -8/Materials | Identified Active Sensor Suite 4443 | -8/Materials | Entered Factory 4443 | -7/Factory | Evolved 2 slots: Propulsion x1, Utility x1 5716 | -7/Factory | Discovered new exit (range 14) 5720 | -7/Factory | Identified exit to Factory 5785 | -7/Factory | Entered another Factory area 5785 | -6/Factory | Evolved 2 slots: Propulsion x1, Utility x1 6009 | -6/Factory | Discovered new exit (range 9) 6013 | -6/Factory | Identified exit to Lower Caves 6017 | -6/Factory | Discovered new exit (range 12) 6019 | -6/Factory | Identified exit to Factory 6036 | -6/Factory | Entered another Factory area 6036 | -5/Factory | Evolved 2 slots: Power x1, Utility x1 6102 | -5/Factory | Discovered new exit (range 5) 6102 | -5/Factory | Identified exit to Upper Caves 6120 | -5/Factory | Build established: Hacker-Sprinter 6621 | -5/Factory | Discovered new exit (range 14) 6634 | -5/Factory | Identified exit to Factory 6644 | -5/Factory | Entered another Factory area 6644 | -4/Factory | Evolved 2 slots: Propulsion x1, Utility x1 6753 | -4/Factory | Discovered new exit (range 9) 6769 | -4/Factory | Identified exit to Research 6816 | -4/Factory | Discovered new exit (range 5) 6819 | -4/Factory | Identified exit to Upper Caves 6897 | -4/Factory | Identified exit to Armory 7262 | -4/Factory | Repaired Lyr. Light Armor Plating 7576 | -4/Factory | Repaired Cesium-ion Thruster 7596 | -4/Factory | Repaired Cesium-ion Thruster 7644 | -4/Factory | Search patrols dispatched 7982 | -4/Factory | Entered Research 7982 | -3/Research | Evolved 2 slots: Utility x2 8189 | -3/Research | Spotted B-86 Titan 8216 | -3/Research | Discovered new exit (range 7) 8217 | -3/Research | Identified exit to Quarantine 8257 | -3/Research | Crushed by falling debris 8437 | -3/Research | Entered Quarantine 8438 | -3/Quarantine | Maximum security lockdown engaged 8452 | -3/Quarantine | Found Alien Artifact 8453 | -3/Quarantine | Identified Terrabomb 8453 | -3/Quarantine | Used Terrabomb 8458 | -3/Quarantine | Found Terrabomb 8466 | -3/Quarantine | Found Alien Artifact 8487 | -3/Quarantine | Spotted Alpha 7 8522 | -3/Quarantine | Found Alien Slashing Weapon 8524 | -3/Quarantine | Identified Sigix Broadsword 8550 | -3/Quarantine | Used Terrabomb 8568 | -3/Quarantine | Discovered new exit (range 7) 8570 | -3/Quarantine | Identified exit to Research 8573 | -3/Quarantine | Entered Research 8573 | -2/Research | Evolved 2 slots: Propulsion x1, Utility x1 8591 | -2/Research | Discovered new exit (range 11) 8594 | -2/Research | Identified exit to Access 8801 | -2/Research | Discovered new exit (range 12) 8807 | -2/Research | Identified exit to Testing 8812 | -2/Research | Entered Testing 8813 | -2/Testing | Maximum security lockdown engaged 8926 | -2/Testing | Spotted Striker 8926 | -2/Testing | Spotted Striker 8953 | -2/Testing | Spotted Alpha 7 8982 | -2/Testing | Identified Phase Armor 9041 | -2/Testing | Spotted Striker 9041 | -2/Testing | Spotted Striker 9047 | -2/Testing | Core integrity fell below 50% 9050 | -2/Testing | Core integrity fell below 20% 9060 | -2/Testing | Spotted Investigator 9060 | -2/Testing | Destroyed by G-73 Enforcer with Heavy Laser Last Messages --------------- Acquired 7 matter. System corrupted: Matter fused (-8). C-30 ARC bursts open, deploying its payload. G-73 Enforcer unfolds itself. E-15 Imp unfolds itself. Investigator unfolds itself. Imp. Targeting Computer destroyed. Investigator: "PRIMARY THREAT IDENTIFIED. CONTAINMENT PROTOCOL APPLICABLE." C-30 ARC bursts open, deploying its payload. G-73 Enforcer unfolds itself. L-61 Swordsman unfolds itself. G-73 Enforcer unfolds itself. L-61 Swordsman unfolds itself. E-15 Imp unfolds itself. C-30 ARC bursts open, deploying its payload. G-73 Enforcer unfolds itself. L-61 Swordsman unfolds itself. G-73 Enforcer unfolds itself. B-74 Champion unfolds itself. E-15 Imp unfolds itself. Map ----- +----------------------------------------------------+ | """ """ """ #??"" # #?????????????????????????? | | #???? =# #?????????????????????????? | | """ """ #??????# #?????????????????????????? | | """ """ #??????# #?????????????????????????? | | """ """ =!!#??????# #?????????????????????????? | | !=!!#??????# #?????????????????????????? | | """ """ /%!######## #########?????????????????? | | """ """ =%/ # ??????????????????? | | """ """ %=" =p # """""" #????????????????? | | " gggg # ""S""" #????????????????? | | Kg=K[b# """ #????????????????? | | ###"""%"" ###########% + #????????????????? | | ??#"""T"""#??#""""" #K # """""" #????????????????? | | ??#########??#"""F""#b # """""" ?????????????????? | | ??????########""" ""# # """"""??????????????????? | | ??????# ! # ???????????????????? | | ??????# #######???????????????????? | | ??????# #?????????????????????????? | | ??????# #?????????????????????????? | | ??????# """"""" #?????????????????????????? | | ###???# """"""" #?????????????????????????? | | ????# """"""" ##????????????????????????? | | ###### % #????????????????????????? | | ! #????????????????????????? | | ! % ######/##????????????????? | | ################+### % @l l e #????????????????? | | ???????????# ## ggge #????????????????? | | ???????????#"" "## """g #????????????????? | | ???????????#" ## !! """ b #????????????????? | | #??????????#"" " "##!! e! """l #???o????????????? | | #??????????#" "]"?#!! !! g c #????????????????? | | #??????????#"""###?# gg #????????????????? | | #??????????####????# g ? ????????????????? | | #??????????????????###"" ""# ??????????????????? | | #????????????????????#""T""# ???????????????????? | | ?????????????????????# """ # ???????????????????? | | ???????????????????????####??#???????????????????? | | ????????????????????????????????????????????????? | | "????????????????????????????????????????????????? | | "#???????????????????????????????????????????????? | | "#???????????????????????????????????????????????? | | #????????????????????????????????????????????????? | | ?????????????????????????????????????????????????? | | ?????????????????????????????????????????????????? | | ?????????????????????????????????????????????????? | | ?????????????????????????????????????????????????? | | ?????????????????????????????????????????????????? | | ?????????????????????????????????????????????????? | | ?????????????????????????????????????????????????? | | ?????????????????????????????????????????????????? | +----------------------------------------------------+ Best States ------------- Heat Dissipation 49 Energy Generation 35 Energy Capacity 515 Matter Stores 300 Matter Capacity 300 Sight Range 16 Robot Scan Range 20 Terrain Scan Density 10 Armor Coverage 375 Phase Shifting 5 Evasion (%) 82 Targeting Accuracy 12 Melee Accuracy 32 Target Analysis 5 Recoil Reduction 4 Offensive Hacking 30 Defensive Hacking 12 Item Schematics ----------------- None Robot Schematics ------------------ None Fabricated ------------ Nothing Alien Tech Used ----------------- Terrabomb Sigix Broadsword Phase Armor Achievements -------------- Hunted Challenges ------------ None Game ------ Seed PlasmaPlasmaCompanion Manual? 0 Play Time 01:50:35 Cumulative 56.5 hours Start 2025.04.27 @ 07:11:39 End 2025.04.27 @ 09:03:24 Sessions 1 Manual Loads 0 Difficulty Rogue Special Mode None Game No. 68 Rogue 68 Adventurer 0 Explorer 0 Win Type - Total 0 Types 0/0/0/0/0/0/0/0/0 Lore% 13 Gallery% 42 Achievement% 37 Wizard Run 0 Options --------- Layout 1 ASCII 0 Keyboard 0 Movement Mouse Keybinds 0 Fullscreen 1 Font 32/SmallcapsGlow Map View 77x35 Zoom Use 0% Tactical HUD 0 Map Filters NONE Filters NONE Steam 1 RUN: 390298c3-6f4f-48cc-bbd1-3b0558e459c8